Cogmind - Beta 14 @@@ ROGUE MODE // 2024.10.30 @ 18:09:32 Player: toydarian Result: Destroyed by D-53 Grenadier with Mini Grenade Launcher Performance ------------- Evolutions (0) 0 Regions Visited (2) 400 Robots Destroyed (14) 70 Value Destroyed (299) 299 Prototype IDs (0) 0 Alien Tech Used (0) 0 Bonus (0) 0 TOTAL SCORE: 769 Bonus ------- None Cogmind --------- Core Integrity 0/250 Matter 269/300 Energy 240/250 System Corruption 0% Temperature Cool (0) Movement Treading (240) Ox1 Location -10/Mines Parts ------- > --- POWER (1) -------- Ion Engine > --- PROPULSION (2) --- Light Treads Light Treads > --- UTILITY (2) ------ High-capacity Storage Unit Targeting Computer > --- WEAPON (2) ------- Light Assault Rifle Light Assault Rifle > --- INVENTORY (20) --- Ion Engine Ion Engine Light Ion Engine Light Ion Engine Aluminum Leg Large Matter Pod (104) Structural Scanner Utility Shielding Light Assault Rifle Light Assault Rifle Grenade Launcher Mining Claw Peak State ------------ > --- POWER ------------ Ion Engine > --- PROPULSION ------- Aluminum Leg Aluminum Leg > --- UTILITY ---------- High-capacity Storage Unit Targeting Computer > --- WEAPON ----------- Assault Rifle Light Assault Rifle > --- INVENTORY -------- Ion Engine Ion Engine Light Treads Light Treads Aluminum Leg Small Storage Unit Small Storage Unit Small Laser Light Assault Rifle Light Assault Rifle [Rating: 8] Favorites ----------- Power Ion Engine Engine Ion Engine Propulsion Aluminum Leg Treads Light Treads Leg Aluminum Leg Utility High-capacity Storage Unit Storage High-capacity Storage Unit Processor Targeting Computer Weapon Light Assault Rifle Ballistic Gun Light Assault Rifle Launcher Grenade Launcher Build | -11 -10 -10 ------- Run | Yrd Mat Min Slots Evolved . | . . . Power . | . . . Propulsion . | . . . Utility . | . . . Weapon . | . . . Parts Attached 19 | 7 10 2 Power 2 | 1 1 . Engine 2 | 1 1 . Core . | . . . Reactor . | . . . Propulsion 6 | 2 4 . Treads 3 | . 3 . Leg 3 | 2 1 . Wheel . | . . . Hover . | . . . Flight . | . . . Utility 4 | 2 2 . Device . | . . . Storage 3 | 2 1 . Processor 1 | . 1 . Hackware . | . . . Protection . | . . . Artifact . | . . . Weapon 7 | 2 3 2 Energy Gun . | . . . Energy Cannon . | . . . Ballistic Gun 6 | 2 3 1 Ballistic Cannon . | . . . Launcher 1 | . . 1 Special Weapon . | . . . Impact Weapon . | . . . Slashing Weapon . | . . . Piercing Weapon . | . . . Special Melee Weapon . | . . . Unidentified Prototypes . | . . . Parts Lost 4 | . 4 . Power . | . . . Propulsion 2 | . 2 . Utility . | . . . Weapon 2 | . 2 . Highest Loss Streak 4 | . 4 . To Critical Strikes . | . . . Average Slot Usage (%) 99 | . 99 100 Engine 14 | . 14 14 Treads 12 | . 10 28 Leg 15 | . 17 . Storage 15 | . 15 14 Processor 12 | . 12 14 Ballistic Gun 27 | . 27 25 Peak Build Rating 8 | 7 8 8 Average Rating 7 | 4 7 8 On Entrance 5 | . 7 8 Naked Turns . | . . . Heaviest Build 49 | 17 48 49 Greatest Support 40 | 20 40 40 Greatest Overweight (x) 2 | 1 2 1 Average Overweight (x) 1 | . 1 1 Largest Inventory Capacity 20 | 8 20 20 Average Capacity 18 | 6 18 20 Most Carried 14 | 4 14 14 Average Carried 9 | 3 9 13 Final Capacity 20 | 8 20 20 Final Carried 14 | 4 14 12 Class Distribution -------------------- 100% | Mutant Dominant Class ---------------- Mutant | -10/Materials Mutant | -10/Mines Resources | -11 -10 -10 ----------- Run | Yrd Mat Min Matter Collected 652 | 278 374 . Remotely . | . . . Salvage Created 441 | 77 364 . Parts 24 | 1 23 . Haulers Intercepted . | . . . Recyclers Shooed . | . . . Parts Field Recycled . | . . . Retrieved Matter . | . . . Parts Self-Destructed . | . . . Prevented . | . . . Kills | -11 -10 -10 ------- Run | Yrd Mat Min Combat Hostiles Destroyed 12 | . 12 . Guns 12 | . 12 . Classes Destroyed 4 | 1 3 . Recycler 1 | 1 . . Operator 1 | . 1 . Swarmer 6 | . 6 . Grunt 6 | . 6 . Best Kill Streak 3 | 1 3 . Combat Bots Only 3 | . 3 . Max Kills in Single Turn 1 | 1 1 . Gunslinging . | . . . Exploded . | . . . Melee . | . . . Uniques/NPCs Destroyed . | . . . Combat | -11 -10 -10 -------- Run | Yrd Mat Min Hostile Shots Fired 113 | . 104 9 Missed 25 | . 25 . Damage Taken 1215 | . 812 403 Core 274 | . 162 112 Absorbed by Shields . | . . . Core Remaining (%) 100 | 100 . . Volleys Fired 62 | 4 57 1 Largest 2 | 2 2 2 Hottest 50 | 40 40 50 Shots Fired 123 | 8 113 2 Gun 122 | 8 113 1 Cannon . | . . . Launcher 1 | . . 1 Special . | . . . Kinetic 122 | 8 113 1 Thermal . | . . . Explosive 1 | . . 1 Electromagnetic . | . . . Robot Hit Streak 12 | 2 12 2 Robot Miss Streak 5 | 5 3 . Penetration Max . | . . . Secondary Targets 6 | . 6 . Max Gunslinging Chain 1 | . 1 . Shots Hit Robots 78 | 2 74 2 Core Hits 33 | 2 28 3 Critical Kills . | . . . Critical Parts Destroyed . | . . . Critical Strikes . | . . . Melee Attacks . | . . . Impact . | . . . Slashing . | . . . Piercing . | . . . Sneak Attacks . | . . . Combat Hostiles . | . . . Follow-up Attacks . | . . . Damage Inflicted 745 | 15 704 26 Guns 726 | 15 704 7 Cannons . | . . . Explosions 19 | . . 19 Melee . | . . . Ramming . | . . . Kinetic 726 | 15 704 7 Thermal . | . . . Explosive 19 | . . 19 Electromagnetic . | . . . Impact . | . . . Slashing . | . . . Piercing . | . . . Highest Corruption . | . . . Average Corruption . | . . . Corruption Purged . | . . . Corruption Blocked . | . . . Overload Shots . | . . . Overflow Damage . | . . . Projectiles . | . . . Explosions . | . . . Melee . | . . . Knockbacks . | . . . Impact . | . . . Kinetic . | . . . Secondary . | . . . Self-Inflicted Damage 16 | . . 16 Shots 1 | . . 1 Rammed . | . . . Targets Rammed . | . . . Kicked . | . . . Crushed . | . . . Highest Temperature 36 | . 36 10 Average Temperature 13 | . 13 7 Received Heat Transfer 303 | . 303 . Siege Activations . | . . . Robots Corrupted . | . . . Combat Hostiles . | . . . Parts Fried . | . . . Impact Corruptions . | . . . Robots Melted . | . . . Combat Hostiles . | . . . Parts Melted . | . . . Heat Transferred . | . . . Parts Sabotaged . | . . . Parts Stolen . | . . . Parts Stripped . | . . . Power Chain Reactions . | . . . Alert | -11 -10 -10 ------- Run | Yrd Mat Min Peak Influence 220 | 5 220 10 Initial 3 | . 3 . Average 37 | . 44 . Maximum Alert Level 1 | . 1 . Low Security (%) 98 | 100 98 100 Level 1 1 | . 1 . Level 2 . | . . . Level 3 . | . . . Level 4 . | . . . Level 5 . | . . . High Security . | . . . Max Security . | . . . Squads Dispatched 2 | . 2 . Investigation 1 | . 1 . Extermination . | . . . Reinforcement 1 | . 1 . Assault . | . . . Garrison . | . . . Intercept . | . . . Searches Triggered . | . . . Construction Impeded . | . . . Haulers Reinforced . | . . . Active Scanning Responses . | . . . Cargo Convoy Interrupts . | . . . Stealth | -11 -10 -10 --------- Run | Yrd Mat Min Distress Signals 1 | . 1 . Communications Jammed . | . . . Distress Signals . | . . . Times Spotted 33 | . 31 2 Peak Tracking Total 4 | . 4 2 Tactical Retreats . | . . . Traps | -11 -10 -10 ------- Run | Yrd Mat Min Traps Triggered 1 | . 1 . Indirectly . | . . . Trap Hack Attempts . | . . . Triggered . | . . . Disarmed . | . . . Reprogrammed . | . . . Reused . | . . . Traps Extracted . | . . . Installed . | . . . Triggered . | . . . Machines | -11 -10 -10 ---------- Run | Yrd Mat Min Machines Disabled . | . . . Max in Single Turn . | . . . Machines Repaired . | . . . Machines Dismantled . | . . . Machines Sabotaged . | . . . Overloaded Fab Kills . | . . . Hacking | -11 -10 -10 --------- Run | Yrd Mat Min Machines Accessed 3 | . 3 . Terminals 3 | . 3 . Fabricators . | . . . Repair Stations . | . . . Recycling Units . | . . . Scanalyzers . | . . . Garrison Access . | . . . Total Hacks 9 | . 9 . Successful 2 | . 2 . Failed 7 | . 7 . Catastrophic 4 | . 4 . Database Lockouts . | . . . Manual 9 | . 9 . Terminals 9 | . 9 . Fabricators . | . . . Repair Stations . | . . . Recycling Units . | . . . Scanalyzers . | . . . Garrison Access . | . . . Terminal Hacks 2 | . 2 . Branch Access Points 1 | . 1 . Recall Investigation 1 | . 1 . Fabricator Hacks . | . . . Repair Station Hacks . | . . . Recycling Unit Hacks . | . . . Scanalyzer . | . . . Garrison Access Hacks . | . . . Unauthorized Hacks . | . . . Terminals . | . . . Fabricators . | . . . Repair Stations . | . . . Recycling Units . | . . . Scanalyzers . | . . . Garrison Access . | . . . Data Cores Recovered . | . . . Used . | . . . Hacking Detections 3 | . 3 . Full Trace Events . | . . . Feedback Events . | . . . Feedback Blocked . | . . . Robot Schematics Acquired . | . . . Robots Built . | . . . Authchips . | . . . Time . | . . . Total Robot Build Rating . | . . . Part Schematics Acquired . | . . . Parts Built . | . . . Authchips . | . . . Time . | . . . Total Part Build Rating . | . . . Parts Repaired . | . . . Time . | . . . Parts Recycled . | . . . Recycled Matter . | . . . Retrieved Matter . | . . . Retrieved Components . | . . . Parts Scanalyzed . | . . . Part Schematics Acquired . | . . . Parts Damaged . | . . . Bothacking | -11 -10 -10 ------------ Run | Yrd Mat Min Used RIF Installer . | . . . Robots Hacked . | . . . Non-combat . | . . . Combat . | . . . Robot Hacks Applied . | . . . Relay Couplers Released . | . . . Fabnet Peak Effective % . | . . . Robots Rewired . | . . . Allies Hacked . | . . . Hacks Repelled . | . . . Allies | -11 -10 -10 -------- Run | Yrd Mat Min Total Allies . | . . . Largest Group . | . . . Highest-Rated Group . | . . . Highest-Rated Ally . | . . . Total Orders . | . . . Ally Attacks . | . . . Total Damage . | . . . Kills . | . . . Allies Corrupted . | . . . Allies Melted . | . . . Intel | -11 -10 -10 ------- Run | Yrd Mat Min Robot Analysis Total . | . . . Derelict Logs Recovered . | . . . Drone Launches . | . . . Drone Recoveries . | . . . Exploration | -11 -10 -10 ------------- Run | Yrd Mat Min Turns Passed 2313 | 80 1983 250 Spaces Moved 864 | 44 719 101 Core 3 | 3 . . Treads 507 | . 406 101 Legs 354 | 41 313 . Wheels . | . . . Hover . | . . . Flight . | . . . Fastest Speed 50 | 50 120 240 Average Speed 241 | 126 248 240 Slowest Speed 320 | 190 320 240 Overloaded Moves . | . . . Propulsion Burnouts . | . . . Robots Hopped . | . . . Cave-ins Triggered . | . . . Exploration Rate (%) 32 | 5 71 22 Regions Visited 2 Branch Regions 1 Pre-discovered Areas . | . . . Known Exits Taken 1 | . 1 . Unknown Exits Taken 1 | 1 . . Scrap Searched . | . . . Spaces Dug . | . . . Terrain Destroyed 10 | . . 10 Melee . | . . . Projectile . | . . . AOE 10 | . . 10 Terrain Rammed . | . . . Walls Destroyed . | . . . Machines Disabled . | . . . Actions | -11 -10 -10 --------- Run | Yrd Mat Min Total 984 | 58 820 106 Wait 18 | . 18 . Move 862 | 43 718 101 Hop . | . . . Pick Up 17 | 4 13 . Fast Attach 8 | 7 1 . Attach 4 | . 4 . Detach 1 | . 1 . Swap 7 | . 5 2 Drop 5 | . 3 2 Fire 62 | 4 57 1 Melee . | . . . Ram . | . . . Kick . | . . . Crush . | . . . Escape Stasis . | . . . Rewire . | . . . Trap . | . . . Miscellaneous . | . . . Route ------- -11/Scrapyard -10/Materials (discovered 3 exits: [*Mat x2] / *Min) -10/Mines (discovered 1 exit: [*Mat]) History --------- Turn | Location | Event 14 | -11/Scrapyard | Discovered new exit (range 16) 81 | -11/Scrapyard | Entered Materials 213 | -10/Materials | Identified exit to Mines 215 | -10/Materials | Discovered new exit (range 13) 307 | -10/Materials | Build established: Mutant 798 | -10/Materials | Lost 4 parts (2n2w) 1069 | -10/Materials | Core integrity fell below 50% 1370 | -10/Materials | Discovered new exit (range 11) 2064 | -10/Materials | Entered Mines 2115 | -10/Mines | Discovered new exit (range 10) 2272 | -10/Mines | Assembled infested the area 2300 | -10/Mines | Deemed a non-threat by the Exiles lab entrance 2313 | -10/Mines | Core integrity fell below 20% 2314 | -10/Mines | Destroyed by D-53 Grenadier with Mini Grenade Launcher Last Messages --------------- 01963_ Acquired 16 matter. 01968_ Acquired 6 matter. 01992_ Acquired 41 matter. 02016_ Acquired 42 matter. 02063_ K-01 Serf cleans the Terminal. LOCATION=MINES GOAL=ESCAPE Something is scanning the area. 02103_ K-01 Serf collects debris. 02115_ EXIT=FOUND 02116_ K-01 Serf collects debris. 02272_ ALERT: Infestation in the mines, dispatching Demolisher response squad. 02273_ Dropped Sml. Storage Unit. 02300_ "No threat detected, you may enter." 02306_ C-30 ARC bursts open, deploying its payload. 02306_ D-53 Grenadier unfolds itself. 02306_ K-01 Serf destroyed. 02306_ T-07 Excavator destroyed. 02313_ The unstable cave ceiling collapses. Map ----- +----------------------------------------------------+ | ???????????????????????????????????? | | ???????????????????????????????????? | | ???????????????????????????????????? | | ???????????????????????????????????? | | ???????????????????????????????????? | | ???????????????????????????????????? | | ???????????????????????????????????? | | ???????????????????????????????????? | | ???????????????????????????????????? | | ????????????# ?????????????????????? | | ???????????? #????????????????????? | | ???????????? #????????????????????? | | ???????????? ????????????????????? | | ???????????? ????????????????????? | | ???????????? #????????????????????? | | ???????????? $#????????????????????? | | ???????????# #????????????????????? | | ??????????? ##???????????????????? | | ???????????# ????????????????????? | | ???????##### #????????????????????? | | ??????## #????????????????????? | | ?????## ##???????????????????? | | ?????# #???????????????????? | | ?????# # ##??????????????????? | | ?????# #??????????????????? | | ???# @ #??????????????????? | | ???### d #??????????????????? | | ?????## d #??????????????????? | | ??????## ##??????????????????? | | ???????### #??????????????????? | | ????????# ##??????????????????? | | ????????# t!###???????????????????? | | ????????# ! #????????????????????? | | ????????# #????????????????????? | | ???????## ##????????????????????? | | ????#### ##?????????????????????? | | ???## #??????????????????????? | | ???# ##?????????????????????? | | ???# #?????????????????????? | | ???# #?????????????????????? | | ???## ##?????????????????????? | | ????### ##??????????????????????? | | ??????# ###???????????????????????? | | ??????# #?????????????????????????? | | ??????# #?????????????????????????? | | ??????# #####?????????????????????? | | ??????# #??####???????????????? | | ??????# #### ##??????????????? | | ??????##### ##?????????????? | | ??????????###### ##????????????? | +----------------------------------------------------+ Best States ------------- Heat Dissipation 25 Energy Generation 10 Energy Capacity 250 Matter Stores 300 Matter Capacity 300 Sight Range 16 Terrain Scan Density 10 Evasion (%) 55 Targeting Accuracy 5 Recoil Reduction 2 Item Schematics ----------------- None Robot Schematics ------------------ None Fabricated ------------ Nothing Alien Tech Used ----------------- None Achievements -------------- None Challenges ------------ None Game ------ Seed NovaTeleporterSuite Manual? 0 Play Time 00:10:22 Cumulative 33.3 hours Start 2024.10.30 @ 17:59:58 End 2024.10.30 @ 18:09:32 Sessions 1 Manual Loads 0 Difficulty Rogue Special Mode None Game No. 43 Rogue 36 Adventurer 0 Explorer 7 Win Type - Total 1 Types 1/0/0/0/0/0/0/0/0 Lore% 12 Gallery% 22 Achievement% 26 Wizard Run 0 Options --------- Layout 0 ASCII 0 Keyboard 0 Movement Mouse Keybinds 0 Fullscreen 1 Font 24/Terminus Map View 76x50 Zoom Use 0% Tactical HUD 1 Map Filters NONE Filters NONE Steam 1 RUN: 48ee52ce-4ded-4b62-83d3-da475e5e253d